Cogmind - Beta 15 @@@ ROGUE MODE // 2025.07.11 @ 20:20:53 Player: saltine Result: Destroyed by S-10 Pest with Light Assault Rifle Performance ------------- Evolutions (0) 0 Regions Visited (3) 600 Robots Destroyed (24) 120 Value Destroyed (492) 492 Prototype IDs (0) 0 Alien Tech Used (0) 0 Bonus (0) 0 TOTAL SCORE: 1212 Bonus ------- None Cogmind --------- Core Integrity 0/250 Matter 270/300 Energy 167/200 System Corruption 0% Temperature Cool (0) Movement Rolling (170) Ox6 Location -10/Subcaves Parts ------- > --- POWER (1) -------- Subdweller Power Source > --- PROPULSION (2) --- Spiked Treads Wheel > --- UTILITY (2) ------ High-capacity Storage Unit Makeshift Kinetic Plating > --- WEAPON (2) ------- Subdweller Beam Cannon Battle Cannon > --- INVENTORY (20) --- Ion Engine Light Ion Engine Light Ion Engine Wheel Medium Storage Unit Seismic Detector EM Pulse Gun Subdweller Laser Subdweller Beam Cannon Light Assault Rifle Light Assault Rifle Subdweller Machine Gun Subdweller Machine Gun Subdweller Shrapnel Launcher Mining Laser Multitool Peak State ------------ > --- POWER ------------ Subdweller Power Source > --- PROPULSION ------- Spiked Treads Wheel > --- UTILITY ---------- High-capacity Storage Unit Makeshift Kinetic Plating > --- WEAPON ----------- Subdweller Beam Cannon Battle Cannon > --- INVENTORY -------- Ion Engine Light Ion Engine Light Ion Engine Wheel Medium Storage Unit Seismic Detector EM Pulse Gun Subdweller Beam Cannon Light Assault Rifle Light Assault Rifle Subdweller Machine Gun Subdweller Machine Gun Subdweller Shrapnel Launcher Mining Laser Multitool [Rating: 16] Favorites ----------- Power Ion Engine Engine Ion Engine Propulsion Light Treads Treads Light Treads Wheel Wheel Utility Seismic Detector Device Seismic Detector Storage High-capacity Storage Unit Protection Makeshift Kinetic Plating Weapon Light Assault Rifle Energy Gun Small Laser Energy Cannon Subdweller Beam Cannon Ballistic Gun Light Assault Rifle Ballistic Cannon Battle Cannon Special Weapon Mining Laser Build | -11 -10 -10 -10 ------- Run | Yrd Mat Min Sub Slots Evolved . | . . . . Power . | . . . . Propulsion . | . . . . Utility . | . . . . Weapon . | . . . . Parts Attached 19 | 6 . 3 10 Power 2 | . . 1 1 Engine 2 | . . 1 1 Core . | . . . . Reactor . | . . . . Propulsion 4 | 2 . . 2 Treads 3 | 2 . . 1 Leg . | . . . . Wheel 1 | . . . 1 Hover . | . . . . Flight . | . . . . Utility 5 | 2 . 1 2 Device 1 | 1 . . . Storage 3 | 1 . 1 1 Processor . | . . . . Hackware . | . . . . Protection 1 | . . . 1 Artifact . | . . . . Weapon 8 | 2 . 1 5 Energy Gun 1 | 1 . . . Energy Cannon 1 | . . . 1 Ballistic Gun 4 | 1 . 1 2 Ballistic Cannon 1 | . . . 1 Launcher . | . . . . Special Weapon 1 | . . . 1 Impact Weapon . | . . . . Slashing Weapon . | . . . . Piercing Weapon . | . . . . Special Melee Weapon . | . . . . Unidentified Prototypes . | . . . . Parts Lost 3 | . . . 3 Power . | . . . . Propulsion 2 | . . . 2 Utility . | . . . . Weapon 1 | . . . 1 Highest Loss Streak 1 | . . . 1 To Critical Strikes . | . . . . Average Backups 10 | 4 6 7 12 Power 2 | 1 2 2 2 Propulsion 2 | 1 2 2 2 Utility 1 | . . . 1 Weapon 4 | . 2 3 5 Tool/Special . | . . . . Unused Backups 9 | . . . 9 Power 2 | . . . 2 Propulsion 1 | . . . 1 Utility . | . . . . Weapon 5 | . . . 5 Tool/Special 1 | . . . 1 Average Slot Usage (%) 98 | . 83 94 100 Engine 12 | . . 8 14 Treads 26 | . 27 28 26 Device 12 | . 14 14 11 Storage 14 | . 14 14 14 Protection 1 | . . . 2 Energy Gun 1 | . 14 1 . Energy Cannon 4 | . . . 5 Ballistic Gun 17 | . 13 26 16 Ballistic Cannon 2 | . . . 3 Special Weapon 2 | . . . 2 Peak Build Rating 16 | 6 6 7 16 Average Rating 9 | 5 5 6 10 On Entrance 4 | . 6 6 7 Naked Turns . | . . . . Heaviest Build 63 | 9 9 19 63 Greatest Support 40 | 40 40 40 40 Greatest Overweight (x) 6 | . . . 6 Average Overweight (x) . | . . . 1 Largest Inventory Capacity 20 | 8 8 10 20 Average Capacity 15 | 7 8 9 17 Most Carried 16 | 6 7 8 16 Average Carried 10 | 4 6 7 12 Final Capacity 20 | 8 8 10 20 Final Carried 16 | 6 7 8 16 Class Distribution -------------------- 96% | Mutant 3% | Derelict-Mutant Dominant Class ---------------- Mutant | -10/Materials Mutant | -10/Mines Mutant | -10/Subcaves Resources | -11 -10 -10 -10 ----------- Run | Yrd Mat Min Sub Matter Collected 643 | 258 87 70 228 Remotely . | . . . . Salvage Created 641 | 159 127 44 311 Parts 44 | 16 5 6 17 Haulers Intercepted . | . . . . Recyclers Shooed . | . . . . Parts Field Recycled . | . . . . Retrieved Matter . | . . . . Parts Self-Destructed 19 | . . . 19 Prevented . | . . . . Kills | -11 -10 -10 -10 ------- Run | Yrd Mat Min Sub Combat Hostiles Destroyed 16 | . 5 3 8 Guns 11 | . 5 3 3 Cannons 5 | . . . 5 Classes Destroyed 5 | 1 2 . 2 Tunneler 8 | 8 . . . Swarmer 7 | . 3 3 1 Grunt 2 | . 2 . . Sentry 1 | . . . 1 Subdweller 6 | . . . 6 Best Kill Streak 5 | 3 5 3 1 Combat Bots Only 5 | . 5 3 1 Max Kills in Single Turn 1 | 1 1 1 1 Gunslinging . | . . . . Exploded . | . . . . Melee . | . . . . Uniques/NPCs Destroyed . | . . . . Combat | -11 -10 -10 -10 -------- Run | Yrd Mat Min Sub Hostile Shots Fired 107 | . 24 13 70 Missed 33 | . 12 3 18 Hits 74 | . 12 10 52 Projectile 74 | . 12 10 52 Critical Strikes 2 | . . 2 . Damage Taken 936 | . 134 83 719 Core 250 | . 54 24 172 Absorbed by Shields . | . . . . Ignored by Resistances 9 | . . . 9 Core Remaining (%) 100 | 100 . . . Volleys Fired 74 | 15 9 5 45 Largest 2 | 2 2 2 2 Hottest 113 | 60 60 60 113 Shots Fired 125 | 30 18 10 67 Gun 94 | 30 18 10 36 Cannon 19 | . . . 19 Launcher . | . . . . Special 12 | . . . 12 Kinetic 69 | 15 9 5 40 Thermal 56 | 15 9 5 27 Explosive . | . . . . Electromagnetic . | . . . . Robot Hit Streak 17 | 11 5 2 17 Robot Miss Streak 5 | 2 3 3 5 Penetration Max . | . . . . Secondary Targets 3 | . 3 . . Max Gunslinging Chain 1 | . 1 . . Shots Hit Robots 80 | 21 11 5 43 Core Hits 32 | 8 8 3 13 Critical Kills . | . . . . Critical Parts Destroyed . | . . . . Critical Strikes . | . . . . Melee Attacks . | . . . . Impact . | . . . . Slashing . | . . . . Piercing . | . . . . Sneak Attacks . | . . . . Combat Hostiles . | . . . . Follow-up Attacks . | . . . . Damage Inflicted 1152 | 245 126 75 706 Guns 842 | 245 126 75 396 Cannons 310 | . . . 310 Explosions . | . . . . Melee . | . . . . Ramming . | . . . . Kinetic 630 | 99 40 54 437 Thermal 522 | 146 86 21 269 Explosive . | . . . . Electromagnetic . | . . . . Impact . | . . . . Slashing . | . . . . Piercing . | . . . . Highest Corruption . | . . . . Average Corruption . | . . . . Corruption Purged . | . . . . Corruption Blocked . | . . . . Overload Shots . | . . . . Overflow Damage . | . . . . Projectiles . | . . . . Explosions . | . . . . Melee . | . . . . Knockbacks . | . . . . Impact . | . . . . Kinetic . | . . . . Secondary . | . . . . Self-Inflicted Damage . | . . . . Shots . | . . . . Rammed 1 | 1 . . . Targets Rammed 1 | 1 . . . Kicked . | . . . . Crushed . | . . . . Highest Temperature 24 | . 4 . 24 Average Temperature 10 | . 2 . 12 Received Heat Transfer 282 | . 60 . 222 Siege Activations . | . . . . Martial Activations . | . . . . Shielding Activations . | . . . . Robots Disrupted . | . . . . Combat Hostiles . | . . . . Robots Corrupted . | . . . . Combat Hostiles . | . . . . Parts Fried . | . . . . Impact Corruptions . | . . . . Robots Melted . | . . . . Combat Hostiles . | . . . . Parts Melted 1 | . . . 1 Heat Transferred 945 | 325 200 50 370 Parts Sabotaged . | . . . . Parts Stolen . | . . . . Parts Stripped . | . . . . Power Chain Reactions . | . . . . Alert | -11 -10 -10 -10 ------- Run | Yrd Mat Min Sub Maximum Alert Level . | . . . . Low Security (%) 100 | 100 100 100 . Level 1 . | . . . . Level 2 . | . . . . Level 3 . | . . . . Level 4 . | . . . . Level 5 . | . . . . High Security . | . . . . Max Security . | . . . . Peak Influence 120 | 10 120 112 . Initial 42 | . . 42 . Average 27 | . 41 43 . Influence Increases 375 | 40 150 70 115 Destroy 0b10 Robot/C 200 | . 100 60 40 Destroy 0b10 Robot/NC 40 | 40 . . . Destroy Leader 30 | . 20 10 . Select Force Hacks 30 | . 30 . . Lose Combat Pursuer 75 | . . . 75 Influence Decreases 282 | 40 40 180 22 Entered New Map 68 | . . 68 . Time Decay 214 | 40 40 112 22 Squads Dispatched 1 | . 1 . . Investigation 1 | . 1 . . Extermination . | . . . . Reinforcement . | . . . . Assault . | . . . . Garrison . | . . . . Intercept . | . . . . Searches Triggered . | . . . . Construction Impeded . | . . . . Haulers Reinforced . | . . . . Active Scanning Responses . | . . . . Cargo Convoy Interrupts . | . . . . Stealth | -11 -10 -10 -10 --------- Run | Yrd Mat Min Sub Distress Signals . | . . . . Communications Jammed . | . . . . Distress Signals . | . . . . Times Spotted 21 | . 5 3 13 Peak Tracking Total 4 | . 4 3 4 Tactical Retreats 1 | . . . 1 Traps | -11 -10 -10 -10 ------- Run | Yrd Mat Min Sub Traps Triggered 1 | . 1 . . Indirectly . | . . . . Trap Hack Attempts . | . . . . Triggered . | . . . . Disarmed . | . . . . Reprogrammed . | . . . . Reused . | . . . . Traps Extracted . | . . . . Installed . | . . . . Triggered . | . . . . Machines | -11 -10 -10 -10 ---------- Run | Yrd Mat Min Sub Machines Disabled . | . . . . Max in Single Turn . | . . . . Machines Repaired . | . . . . Machines Dismantled . | . . . . Machines Sabotaged . | . . . . Overloaded Fab Kills . | . . . . Hacking | -11 -10 -10 -10 --------- Run | Yrd Mat Min Sub Machines Accessed 2 | . 2 . . Terminals 1 | . 1 . . Fabricators . | . . . . Repair Stations . | . . . . Recycling Units 1 | . 1 . . Scanalyzers . | . . . . Garrison Access . | . . . . Total Hacks 3 | . 3 . . Successful 2 | . 2 . . Failed 1 | . 1 . . Catastrophic . | . . . . Database Lockouts . | . . . . Manual 1 | . 1 . . Terminals 2 | . 2 . . Fabricators . | . . . . Repair Stations . | . . . . Recycling Units 1 | . 1 . . Scanalyzers . | . . . . Garrison Access . | . . . . Terminal Hacks 1 | . 1 . . Zone Layout 1 | . 1 . . Fabricator Hacks . | . . . . Repair Station Hacks . | . . . . Recycling Unit Hacks . | . . . . Scanalyzer . | . . . . Garrison Access Hacks . | . . . . Unauthorized Hacks 1 | . 1 . . Terminals . | . . . . Fabricators . | . . . . Repair Stations . | . . . . Recycling Units 1 | . 1 . . Tunnel 1 | . 1 . . Scanalyzers . | . . . . Garrison Access . | . . . . Data Cores Recovered . | . . . . Used . | . . . . Hacking Detections 1 | . 1 . . Full Trace Events . | . . . . Feedback Events . | . . . . Feedback Blocked . | . . . . Robot Schematics Acquired . | . . . . Robots Built . | . . . . Authchips . | . . . . Time . | . . . . Total Robot Build Rating . | . . . . Part Schematics Acquired . | . . . . Parts Built . | . . . . Authchips . | . . . . Time . | . . . . Total Part Build Rating . | . . . . Parts Repaired . | . . . . Time . | . . . . Parts Recycled . | . . . . Recycled Matter . | . . . . Retrieved Matter . | . . . . Retrieved Components . | . . . . Parts Scanalyzed . | . . . . Part Schematics Acquired . | . . . . Parts Damaged . | . . . . Bothacking | -11 -10 -10 -10 ------------ Run | Yrd Mat Min Sub Used RIF Installer . | . . . . Robots Hacked . | . . . . Non-combat . | . . . . Combat . | . . . . Robot Hacks Applied . | . . . . Relay Couplers Released . | . . . . Fabnet Peak Effective % . | . . . . Robots Rewired . | . . . . Allies Hacked . | . . . . Hacks Repelled . | . . . . Allies | -11 -10 -10 -10 -------- Run | Yrd Mat Min Sub Total Allies . | . . . . Largest Group . | . . . . Highest-Rated Group . | . . . . Highest-Rated Ally . | . . . . Total Orders . | . . . . Ally Attacks . | . . . . Total Damage . | . . . . Kills . | . . . . Allies Corrupted . | . . . . Allies Melted . | . . . . Intel | -11 -10 -10 -10 ------- Run | Yrd Mat Min Sub Active Infowar (turns) 2466 | 122 166 300 1878 Seismic 2466 | 122 166 300 1878 Robot Analysis Total . | . . . . Derelict Logs Recovered 2 | . . . 2 Drone Launches . | . . . . Drone Recoveries . | . . . . Exploration | -11 -10 -10 -10 ------------- Run | Yrd Mat Min Sub Turns Passed 2994 | 268 166 300 2260 Spaces Moved 1271 | 132 84 162 893 Core 3 | 3 . . . Treads 1166 | 129 84 162 791 Legs . | . . . . Wheels 102 | . . . 102 Hover . | . . . . Flight . | . . . . Fastest Speed 50 | 50 160 160 155 Average Speed 193 | 157 160 160 207 Slowest Speed 250 | 160 160 160 250 Overloaded Moves . | . . . . Propulsion Burnouts . | . . . . Robots Hopped . | . . . . Potential Cave-ins . | . . . . Cave-ins Triggered . | . . . . Exploration Rate (%) 30 | 10 18 36 57 Regions Visited 3 Branch Regions 2 Pre-discovered Areas 2 | . 1 . 1 Known Exits Taken . | . . . . Unknown Exits Taken 3 | 1 1 1 . Scrap Searched 10 | . . 1 9 Spaces Dug 5 | . . . 5 Terrain Destroyed 9 | . . . 9 Melee . | . . . . Projectile 9 | . . . 9 AOE . | . . . . Terrain Rammed . | . . . . Walls Destroyed . | . . . . Machines Disabled . | . . . . Actions | -11 -10 -10 -10 --------- Run | Yrd Mat Min Sub Total 1650 | 159 96 192 1203 Wait 254 | . . 21 233 Move 1268 | 131 83 161 893 Hop . | . . . . Pick Up 18 | 6 1 . 11 Fast Attach 10 | 6 3 1 . Attach 4 | . . 1 3 Detach . | . . . . Swap 19 | . . 2 17 Drop 2 | . . 1 1 Fire 74 | 15 9 5 45 Melee . | . . . . Ram . | . . . . Kick . | . . . . Crush 1 | 1 . . . Escape Stasis . | . . . . Rewire . | . . . . Trap . | . . . . Miscellaneous . | . . . . Route ------- -11/Scrapyard -10/Materials -10/Mines (discovered 2 exits: [*Mat] / [*Sub]) -10/Subcaves (discovered 2 exits: Mat / [*Rec]) History --------- Turn | Location | Event 25 | -11/Scrapyard | Discovered new exit (range 15) 269 | -11/Scrapyard | Entered Materials 308 | -10/Materials | Build established: Mutant 404 | -10/Materials | Discovered new exit (range 8) 435 | -10/Materials | Entered Mines 541 | -10/Mines | Discovered new exit (range 14) 718 | -10/Mines | Discovered new exit (range 5) 735 | -10/Mines | Entered Subcaves 736 | -10/Subcaves | Approached by a straggling Scientist 848 | -10/Subcaves | A swath of the cavern ceiling suddenly collapsed 1190 | -10/Subcaves | Disturbed a concealed Subdweller 1262 | -10/Subcaves | Identified exit to Materials 2038 | -10/Subcaves | Core integrity fell below 50% 2137 | -10/Subcaves | Core integrity fell below 20% 2816 | -10/Subcaves | Learned location of Storage (-9) 2976 | -10/Subcaves | Discovered new exit (range 12) 2995 | -10/Subcaves | Destroyed by S-10 Pest with Light Assault Rifle Last Messages --------------- 02809_ Acquired 18 matter. 02816_ Acquired derelict log, extracted data. World map updated: -9/Storage. 02818_ Searching scrap... 02818_ Found Sub. Machine Gun. 02818_ Found Sub. Power Source. 02818_ Found 68 Matter. 02819_ Searching scrap... 02819_ Found Barrage Gun. 02823_ Searching scrap... 02823_ Found Flamer. 02823_ Found Mak. Flight Unit. 02823_ Found 50 Matter. 02833_ Acquired Sub. Machine Gun. 02837_ Acquired Sub. Laser. 02840_ Acquired 10 matter. 02861_ 8D-CYA(R) destroyed. 02871_ Acquired 5 matter. 02976_ EXIT=FOUND 02993_ S-10 Pest destroyed. Map ----- +----------------------------------------------------+ | ## #?????????????????????????????### | | # #???????????????????????????????# | | ##### #???????????????????????????????# | | #???## #???????????????????????????????# | | "### ##??## #???????????????????????????????? | | "" #??## ##???????????????????????????????? | | """ ##?## #????????????????????????????????? | | ##" " ### ##???????????????????????????????? | | ##?"" ## #???????????????????????????????? | | ?????"## ## #???????????????????????????????? | | ?????? # ### #???????????????????????????????? | | ?????? # #?# ##??????????????????????????????# | | ???????##??# ##??????????###?????????######## | | "??????????# ####??##### #????????## ## # | | "??????????# #### #??????###"" | | ?"???????### ## #???????##"## | | ????????## ### ## #????????##""""## | | ????????# ##?# ### #?????######"##" | | ????????## #??## ## ### #?????# #""""""" | | ?????????## #???# ## ######????? #""#""# | | ?????????## ##???## ### ##??????##""""## | | ?????????# #?###?## ####????## ###### | | ????????## ## ##?## ##???##"# #??### | | ????????# #??# ##??#""# #???# | | ????????## ##??# #### "" #??## | | ?????????## ##???## @ " #??# | | ??????????# #?????####s% ### ##??#" | | ??????????## ##???????##%###?#### # ###???# | | ???????????## ##???????## #??????# ###?????## | | ????????????###???????## ##????# #???????## | | ??????????????????????# ##??# #????????# | | ????????????????????? " #??# ####????????# | | ???????????????#" "&! #??## ##?????????### | | ???????????????#"" !*%& ##???####?????????##" | | ??????????????"< &%& #????????????????# " | | ?????????????###"" % & ] #???????????????# " | | ???????????????#" ###%= #????????????????##""" | | ???????????????#" ??#= ##???????????????????## | | ???????????????#" "??# #?????????????????????? | | ???????????????######??? ?????????????????????? | | ???????????????????????? ?????????????????????? | | ???????????????????????? ?????????????????????? | | ???????????????????????? ?????????????????????? | | ???????????????????????? ????????????????????? | | ??????????????????????? ?????????????????????? | | ??????????????????????? ?????????????????????? | | ????????????????????????## ?????????????????????? | | ?????????????????????????????????????????????????? | | ?????????????????????????????????????????????????? | | ?????????????????????????????????????????????????? | +----------------------------------------------------+ Best States ------------- Heat Dissipation 25 Energy Generation 10 Energy Capacity 250 Matter Stores 300 Matter Capacity 300 Sight Range 16 Terrain Scan Density 10 Armor Coverage 100 Resistance: KI 10 Evasion (%) 40 Recoil Reduction 2 Item Schematics ----------------- None Robot Schematics ------------------ None Fabricated ------------ Nothing Repaired ---------- Nothing Alien Tech Used ----------------- None Achievements -------------- None Challenges ------------ None Game ------ Seed SpikedZioniteSuite Manual? 0 Play Time 00:12:06 Cumulative 519.7 hours Start 2025.07.11 @ 20:09:43 End 2025.07.11 @ 20:20:53 Sessions 1 Manual Loads 0 Difficulty Rogue Special Mode None Game No. 227 Rogue 227 Adventurer 0 Explorer 0 Win Type - Total 24 Types 7/4/7/2/1/0/1/1/0/1 Lore% 89 Gallery% 86 Achievement% 80 Wizard Run 0 Options --------- Layout 0 ASCII 0 Keyboard 1 Movement Arrows Keybinds 0 Fullscreen 2 Font 18/SmallcapsGlow Map View 76x50 Zoom Use 0% Tactical HUD 1 Map Filters NONE Filters NONE Steam 1 RUN: c6ad9fa9-b05d-4de6-92a8-69bdc04c092e